bitfinex/quotes_BTCUSD_20251031
["timestamp","ask_amount","ask_price","bid_price","bid_amount"]
[1761875900342,0.26085553,109740.0,109730.0,0.21250053]
[1761875900967,0.26085553,109740.0,109730.0,0.00146497]
[1761875902987,0.28042759,109740.0,109730.0,0.00146497]
[1761875904045,0.20282101,109740.0,109730.0,0.02853497]
[1761875904624,0.18324895,109740.0,109730.0,0.02853497]
[1761875905818,0.001,109740.0,109730.0,0.23571053]
[1761875906017,0.001,109740.0,109730.0,0.68491215]
[1761875906426,0.001,109740.0,109730.0,0.68430183]
[1761875907063,0.19175393,109750.0,109740.0,0.18224895]
[1761875907286,0.19175393,109750.0,109740.0,0.23422895]
[1761875908216,0.19175393,109750.0,109740.0,0.23522895]
[1761875909110,0.00952,109750.0,109740.0,0.23522895]
[1761875909392,0.19175234,109750.0,109740.0,0.23522895]
[1761875910498,0.19175234,109750.0,109740.0,0.001]
[1761875911331,0.5870323,109750.0,109740.0,0.001]
[1761875911531,0.60660436,109750.0,109740.0,0.001]
[1761875911744,0.69642337,109750.0,109740.0,0.001]
[1761875911968,0.30114341,109750.0,109740.0,0.001]
[1761875912184,0.69642337,109750.0,109740.0,0.01607]
[1761875912606,0.69642337,109750.0,109740.0,0.01657022]
[1761875913675,0.69642337,109750.0,109740.0,0.00150022]
[1761875918810,1.03642337,109750.0,109740.0,0.00150022]
[1761875919012,1.05344493,109750.0,109740.0,0.00150022]
[1761875920181,1.03642337,109750.0,109740.0,0.00150022]
[1761875920440,0.74798415,109750.0,109740.0,0.00050022]
[1761875920669,1.17228157,109750.0,109740.0,0.00050022]
[1761875921329,1.17328157,109750.0,109740.0,0.00050022]
[1761875921531,1.14426411,109750.0,109740.0,0.00050022]
[1761875921762,1.0544451,109750.0,109740.0,0.00050022]
[1761875921947,1.03742337,109750.0,109740.0,0.00050022]
[1761875927081,1.05444995,109750.0,109740.0,0.00050022]
[1761875928047,1.08346741,109750.0,109740.0,0.00050022]
[1761875928407,1.17328642,109750.0,109740.0,0.00050022]
[1761875930231,1.14426896,109750.0,109740.0,0.00050022]
[1761875930691,1.12724238,109750.0,109740.0,0.00050022]
[1761875931080,1.1442648,109750.0,109740.0,0.00050022]
[1761875935954,0.30214341,109750.0,109740.0,0.02858022]
[1761875936178,0.30214341,109750.0,109740.0,0.01246022]
[1761875936379,0.69742337,109750.0,109740.0,0.00050022]
[1761875942570,0.30214341,109750.0,109740.0,0.00050022]
[1761875942763,0.69742337,109750.0,109740.0,0.00050022]
[1761875942967,0.78724238,109750.0,109740.0,0.00050022]
[1761875944098,3.63430456,109750.0,109740.0,0.00050022]
[1761875944300,3.2390246,109750.0,109740.0,0.00050022]
[1761875944938,3.20947554,109750.0,109740.0,0.00050022]
[1761875945741,3.21799228,109750.0,109740.0,0.00050022]
[1761875945955,1.12817327,109750.0,109740.0,0.00050022]
[1761875947629,0.73289331,109750.0,109740.0,0.00050022]
[1761875947875,1.12817327,109750.0,109740.0,0.00050022]
[1761875950681,1.12817328,109750.0,109740.0,0.00050022]
[1761875951464,1.12821757,109750.0,109740.0,0.00050022]
[1761875951671,1.21803658,109750.0,109740.0,0.00050022]
[1761875952090,0.79369487,109750.0,109740.0,0.00050022]
[1761875953270,0.66769358,109750.0,109740.0,0.00050022]
[1761875953531,0.66769358,109750.0,109740.0,0.05349022]
[1761875953532,0.5523244,109750.0,109740.0,0.05349022]
[1761875953753,0.2123244,109750.0,109740.0,0.05349022]
[1761875953956,0.03009206,109750.0,109740.0,0.63106342]
[1761875954164,0.01052,109750.0,109740.0,0.63106342]
[1761875954809,0.19275234,109750.0,109740.0,0.63106342]
[1761875955491,0.001,109750.0,109740.0,0.63106342]
[1761875956319,0.1913823,109760.0,109740.0,0.63106342]
[1761875956528,0.5313823,109760.0,109750.0,0.01546]
[1761875956732,0.55095436,109760.0,109750.0,0.01573806]
[1761875957541,0.55095436,109760.0,109750.0,0.02775806]
[1761875957754,0.55195436,109760.0,109750.0,0.05110806]
[1761875958035,0.36057206,109760.0,109750.0,0.05110806]
[1761875958459,0.36057206,109760.0,109750.0,0.02775806]
[1761875958661,0.54281849,109760.0,109750.0,0.02775806]
[1761875958791,0.54181849,109760.0,109750.0,0.02775806]
[1761875959001,0.55192927,109760.0,109750.0,0.02775806]
[1761875959209,0.55192927,109760.0,109750.0,0.05110806]
[1761875959850,0.55192927,109760.0,109750.0,0.2333404]
[1761875960272,0.55192927,109760.0,109750.0,0.05110806]
[1761875960599,0.55192927,109760.0,109750.0,0.44643231]
[1761875961124,0.21192927,109760.0,109750.0,0.62866465]
[1761875961526,0.19235721,109760.0,109750.0,0.62866465]
[1761875961757,0.001,109760.0,109750.0,0.62866465]
[1761875961930,0.18321574,109760.0,109750.0,0.62866465]
[1761875963808,0.18321574,109760.0,109750.0,0.2333404]
[1761875964034,0.25756176,109760.0,109750.0,0.05110806]
[1761875964192,0.27713382,109760.0,109750.0,0.05110806]
[1761875964873,0.27713382,109760.0,109750.0,0.2333404]
[1761875965279,0.25656176,109760.0,109750.0,0.2333404]
[1761875965681,0.25656176,109760.0,109750.0,0.2343404]
[1761875966504,0.27617027,109760.0,109750.0,0.2343404]
[1761875967399,0.25656176,109760.0,109750.0,0.2343404]
[1761875968154,0.2761782,109760.0,109750.0,0.2343404]
[1761875969750,0.09396246,109760.0,109750.0,0.2343404]
[1761875969958,0.56028882,109770.0,109750.0,0.62966465]
[1761875970437,0.56028882,109770.0,109760.0,0.01546]
[1761875971128,0.36889814,109770.0,109760.0,0.01546]
[1761875971492,0.55112798,109770.0,109760.0,0.01546]
[1761875971854,0.55212798,109770.0,109760.0,0.01546]
[1761875972042,0.56123793,109770.0,109760.0,0.01546]
[1761875972261,0.56023793,109770.0,109760.0,0.01546]
[1761875972387,0.56123793,109770.0,109760.0,0.01546]
[1761875972777,0.18221574,109760.0,109750.0,0.03564806]
[1761875973179,0.18221574,109760.0,109750.0,0.05110806]
[1761875974665,0.18221574,109760.0,109750.0,0.05210806]
[1761875975105,0.18221574,109760.0,109750.0,0.2343404]
[1761875976063,0.18221574,109760.0,109750.0,0.05210806]
[1761875977074,0.25646111,109760.0,109750.0,0.05210806]
[1761875977328,0.27607755,109760.0,109750.0,0.05210806]
[1761875979206,0.20183218,109760.0,109750.0,0.05210806]
[1761875979742,0.18221574,109760.0,109750.0,0.05210806]
[1761875980000,0.18221574,109760.0,109750.0,0.2343404]
[1761875980777,0.56023793,109770.0,109750.0,0.2343404]
[1761875981029,0.56023793,109770.0,109760.0,0.01546]
[1761875981189,0.55095623,109770.0,109760.0,0.05083]
[1761875981434,0.55095623,109770.0,109760.0,0.02748]
[1761875981560,0.20181558,109770.0,109760.0,0.64659156]
[1761875981761,0.01961644,109770.0,109760.0,0.62836999]
[1761875981979,0.001,109770.0,109760.0,0.62836999]
[1761875982188,0.20185477,109780.0,109760.0,0.62836999]
[1761875982394,0.55037267,109780.0,109770.0,0.05083]
[1761875983487,0.55037267,109780.0,109770.0,0.05096224]
[1761875984019,0.55237267,109780.0,109770.0,0.05096224]
[1761875984222,0.55037267,109780.0,109770.0,0.05096224]
[1761875984642,0.21137267,109780.0,109770.0,0.05096224]
[1761875984842,0.18323833,109780.0,109770.0,0.05096224]
[1761875985166,0.18323833,109780.0,109770.0,0.23316138]
[1761875986593,0.001,109780.0,109770.0,0.23316138]
[1761875986767,0.001,109780.0,109770.0,0.62848563]
[1761875988980,0.001,109780.0,109770.0,1.02380988]
[1761875989195,0.001,109780.0,109770.0,0.62848563]
[1761875990342,0.00099325,109790.0,109780.0,0.18218254]
[1761875990543,0.00099325,109790.0,109780.0,0.62901679]
[1761875992421,0.00099325,109790.0,109780.0,0.63001679]
[1761875997318,0.54925095,109810.0,109780.0,0.63001679]
[1761875997545,0.52218005,109800.0,109790.0,0.02767]
[1761875997731,0.5417666,109800.0,109790.0,0.02767]
[1761875998877,0.5417666,109800.0,109790.0,0.05151]
[1761875999089,0.55087406,109800.0,109790.0,0.05151]
[1761875999871,0.55187406,109800.0,109790.0,0.05151]
[1761876000780,0.55187406,109800.0,109790.0,0.02767]
[1761876001197,0.18216595,109790.0,109770.0,0.01215224]
[1761876001417,0.18218254,109780.0,109770.0,0.00013224]
[1761876002794,0.18218254,109780.0,109770.0,0.05164224]
[1761876002999,0.18218254,109780.0,109770.0,0.02780224]
[1761876003172,0.18218254,109780.0,109770.0,0.02880224]
[1761876003978,0.29156386,109790.0,109770.0,0.21100138]
[1761876004221,0.32647921,109790.0,109770.0,0.23484138]
[1761876004442,0.54174501,109790.0,109780.0,0.05151]
[1761876004580,0.0195789,109790.0,109780.0,0.23369254]
[1761876004788,0.55108837,109800.0,109780.0,0.23369254]
[1761876004994,0.55108837,109800.0,109790.0,0.02767]
[1761876005219,0.55108837,109800.0,109790.0,0.05151]
[1761876005436,0.21108837,109800.0,109790.0,0.05151]
[1761876005638,0.01980086,109800.0,109790.0,0.6290002]
[1761876005838,0.00222196,109800.0,109790.0,0.23367595]
[1761876006385,0.18237132,109800.0,109790.0,0.23367595]
[1761876006598,0.18437132,109800.0,109790.0,0.23367595]
[1761876007141,0.00222196,109800.0,109790.0,0.6290002]
[1761876007822,0.00422196,109800.0,109790.0,0.6290002]
[1761876008447,0.00222196,109800.0,109790.0,0.6290002]
[1761876008659,0.00022196,109800.0,109790.0,0.6290002]
[1761876008774,0.00022196,109800.0,109790.0,0.6310002]
[1761876008975,0.00022196,109800.0,109790.0,0.6340002]
[1761876009197,0.00022196,109800.0,109790.0,0.72381921]
[1761876012112,0.00022196,109800.0,109790.0,0.733004]
[1761876012537,0.40498299,109840.0,109820.0,0.18210773]
[1761876012776,0.1820996,109830.0,109820.0,0.21817773]
[1761876013201,0.1820996,109830.0,109820.0,0.23361773]
[1761876013409,0.5871072,109840.0,109820.0,0.62825356]
[1761876013614,0.5955979,109840.0,109830.0,0.01544]
[1761876013819,0.59608109,109840.0,109830.0,0.01544]
[1761876014997,0.1820996,109830.0,109820.0,0.01223]
[1761876015243,0.1820996,109830.0,109820.0,0.03541]
[1761876015493,0.1820996,109830.0,109820.0,0.0515]
[1761876017053,0.56022214,109840.0,109820.0,0.64646363]
[1761876017269,0.56870938,109840.0,109830.0,0.01609]
[1761876017474,0.56870938,109840.0,109830.0,0.02749]
[1761876018315,0.57070938,109840.0,109830.0,0.02749]
[1761876018484,0.56970938,109840.0,109830.0,0.02749]
[1761876018696,0.57059687,109840.0,109830.0,0.02749]
[1761876018900,0.57159687,109840.0,109830.0,0.05067]
[1761876019708,0.57159687,109840.0,109830.0,0.2327696]
[1761876019709,0.56266518,109840.0,109830.0,0.2327696]
[1761876020312,0.56266518,109840.0,109830.0,0.05067]
[1761876021019,0.22266518,109840.0,109830.0,0.2327696]
[1761876021248,0.20308628,109840.0,109830.0,0.2327696]
[1761876022539,0.20308628,109840.0,109830.0,0.05067]
[1761876022775,0.22263016,109840.0,109830.0,0.05067]
[1761876024216,0.21348482,109840.0,109830.0,0.2327696]
[1761876024618,0.21348173,109840.0,109830.0,0.2327696]
[1761876024821,0.19394094,109840.0,109830.0,0.2327696]
[1761876026068,0.19394094,109840.0,109830.0,0.05067]
[1761876026361,0.19394094,109840.0,109830.0,0.02749]
[1761876027660,0.19394094,109840.0,109830.0,0.05126]
[1761876031267,0.19394094,109840.0,109830.0,0.2333596]
[1761876032176,0.19394094,109840.0,109830.0,0.02749]
[1761876032726,0.18208302,109840.0,109830.0,0.02749]
[1761876033120,0.18208302,109840.0,109830.0,0.05126]
[1761876034815,0.18208302,109840.0,109830.0,0.2333596]
[1761876035698,0.18208302,109840.0,109830.0,0.05126]
[1761876036106,0.18208302,109840.0,109830.0,0.02749]
[1761876036816,0.18208302,109840.0,109830.0,0.2333596]
[1761876037647,0.60549863,109850.0,109830.0,0.2333596]
[1761876037850,0.18208302,109840.0,109830.0,0.2333596]
[1761876038271,0.64082669,109850.0,109840.0,0.0278]
[1761876038469,1.05248447,109850.0,109840.0,0.0278]
[1761876038898,1.05448447,109850.0,109840.0,0.0278]
[1761876039106,1.05248447,109850.0,109840.0,0.0278]
[1761876039315,1.05548447,109850.0,109840.0,0.0278]
[1761876039936,1.05248447,109850.0,109840.0,0.0278]
[1761876040141,1.05548447,109850.0,109840.0,0.0278]
[1761876040552,0.66284864,109850.0,109840.0,0.0278]
[1761876040917,0.57302963,109850.0,109840.0,0.0278]
[1761876042315,0.04171565,109850.0,109840.0,0.64649715]
[1761876042551,0.00514488,109850.0,109840.0,0.62828885]
[1761876042750,0.0246937,109850.0,109840.0,0.23365302]
[1761876043310,0.0216937,109850.0,109840.0,0.62828885]
[1761876043446,0.0206937,109850.0,109840.0,0.62828885]
[1761876043649,0.00114488,109850.0,109840.0,0.62828885]
[1761876043849,0.00236669,109850.0,109840.0,0.62828885]
[1761876044278,0.00236669,109850.0,109840.0,0.23365302]
[1761876044869,0.01088253,109850.0,109840.0,0.23365302]
[1761876045505,0.00988253,109850.0,109840.0,0.23365302]
[1761876045862,0.00988253,109850.0,109840.0,0.23465302]
[1761876046326,0.00988253,109850.0,109840.0,0.62928885]
[1761876046527,0.00888253,109850.0,109840.0,0.62928885]
[1761876047014,0.00036669,109850.0,109840.0,0.62928885]
[1761876048006,0.00036669,109850.0,109840.0,0.23465302]
[1761876048158,0.00036669,109850.0,109840.0,0.62928885]
[1761876049434,0.00036669,109850.0,109840.0,0.23465302]
[1761876049608,0.00036669,109850.0,109840.0,0.62928885]
[1761876050365,0.00036669,109850.0,109840.0,0.23465302]
[1761876050596,0.00036669,109850.0,109840.0,0.62928885]
[1761876050787,0.17435465,109860.0,109850.0,0.01648]
[1761876051213,0.17457643,109860.0,109850.0,0.01648]
[1761876051541,0.56921226,109860.0,109850.0,0.01648]
[1761876051744,0.58876108,109860.0,109850.0,0.01648]
[1761876051995,0.58976108,109860.0,109840.0,0.0358]
[1761876052208,0.1820996,109830.0,109820.0,0.2283618]
[1761876052425,0.59626767,109840.0,109820.0,0.22041518]
[1761876052590,0.1820996,109830.0,109820.0,0.03829899]
[1761876053212,0.1820996,109830.0,109820.0,0.22041518]
[1761876053744,0.1820996,109830.0,109820.0,0.02919319]
[1761876054045,0.61994316,109830.0,109820.0,0.00148319]
[1761876054284,0.63949198,109830.0,109820.0,0.00148319]
[1761876054642,0.63949198,109830.0,109820.0,0.00448319]
[1761876055643,0.63949198,109830.0,109820.0,0.00148319]
[1761876055859,0.63949198,109830.0,109820.0,0.00248319]
[1761876056259,0.63949198,109830.0,109820.0,0.00148319]
[1761876057734,3.55858346,109830.0,109820.0,0.00148319]
[1761876057859,3.57558397,109830.0,109820.0,0.00148319]
[1761876058061,3.60295906,109830.0,109820.0,0.00148319]
[1761876058273,3.67058266,109830.0,109820.0,0.00148319]
[1761876058474,0.55831505,109810.0,109800.0,0.00149258]
[1761876058690,3.54799957,109810.0,109800.0,0.00163746]
[1761876058889,3.60645393,109810.0,109800.0,0.00163746]
[1761876059087,3.6338317,109810.0,109800.0,0.00163746]
[1761876059900,3.24019587,109810.0,109800.0,0.00163746]
[1761876060115,1.09069648,109810.0,109800.0,0.00163746]
[1761876060313,1.10766884,109810.0,109800.0,0.00163746]
[1761876060828,3.10766884,109810.0,109800.0,0.00163746]
[1761876061249,3.09069648,109810.0,109800.0,0.00163746]
[1761876061431,3.13667552,109810.0,109800.0,0.00163746]
[1761876061572,3.65056709,109810.0,109800.0,0.00163746]
[1761876062590,3.65055107,109810.0,109800.0,0.00163746]
[1761876062809,3.65802349,109810.0,109800.0,0.00163746]
[1761876063222,3.66102349,109810.0,109800.0,0.00163746]
[1761876063587,3.67102348,109810.0,109800.0,0.00163746]
[1761876064004,3.66102349,109810.0,109800.0,0.00163746]
[1761876064368,3.66502349,109810.0,109800.0,0.00163746]
[1761876064568,3.67501138,109810.0,109800.0,0.00163746]
[1761876067370,0.18221574,109760.0,109750.0,0.20308546]
[1761876067547,0.18221574,109760.0,109750.0,0.1913977]
[1761876067859,0.23962177,109760.0,109750.0,0.1913977]
[1761876068107,0.23962177,109760.0,109750.0,0.19250805]
[1761876068721,0.18219914,109770.0,109760.0,0.18221574]
[1761876068942,0.57683497,109770.0,109750.0,0.2276977]
[1761876069151,0.57683497,109770.0,109760.0,0.0008882]
[1761876069533,0.18219914,109770.0,109760.0,0.0008882]
[1761876069769,1.1121406,109770.0,109760.0,0.0008882]
[1761876069971,3.17252271,109770.0,109760.0,0.0008882]
[1761876070155,3.19991115,109770.0,109760.0,0.0008882]
[1761876070404,3.17089369,109770.0,109760.0,0.0018882]
[1761876070817,1.17089369,109770.0,109760.0,0.0018882]
[1761876071219,1.17289369,109770.0,109760.0,0.0018882]
[1761876071546,1.17289369,109770.0,109760.0,0.0008882]
[1761876071950,1.17389369,109770.0,109760.0,0.0008882]
[1761876073465,1.17447815,109770.0,109760.0,0.0008882]
[1761876075050,3.20349561,109770.0,109760.0,0.0008882]
[1761876076293,3.17447815,109770.0,109760.0,0.0008882]
[1761876076916,3.14708971,109770.0,109760.0,0.0008882]
[1761876079975,3.17610717,109770.0,109760.0,0.0008882]
[1761876080244,3.1955234,109770.0,109760.0,0.0008882]
[1761876080476,3.62018059,109770.0,109760.0,0.0008882]
[1761876080712,3.63704018,109770.0,109760.0,0.0008882]
[1761876080960,3.66442999,109770.0,109760.0,0.0008882]
[1761876082357,3.2692097,109770.0,109760.0,0.0008882]
[1761876082582,3.2397728,109770.0,109760.0,0.0008882]
[1761876083033,2.69832623,109770.0,109760.0,0.0008882]
[1761876083264,0.66214395,109770.0,109760.0,0.0008882]
[1761876083477,0.66214395,109770.0,109760.0,0.19963394]
[1761876083689,0.64528436,109770.0,109760.0,0.0295382]
[1761876083891,0.64528436,109770.0,109760.0,0.21175394]
[1761876084164,0.55546535,109770.0,109760.0,0.21175394]
[1761876084603,0.63014271,109770.0,109760.0,0.0295382]
[1761876084779,0.64703922,109770.0,109760.0,0.0295382]
[1761876084995,0.64703922,109770.0,109760.0,0.21175394]
[1761876085567,0.4539901,109770.0,109760.0,0.21175394]
[1761876085973,0.37931274,109770.0,109760.0,0.21175394]
[1761876087038,0.03931274,109770.0,109760.0,0.21175394]
[1761876087245,0.20209565,109770.0,109760.0,0.63111423]
[1761876087451,0.20209565,109770.0,109760.0,0.23589394]
[1761876087833,0.22151188,109770.0,109760.0,0.0295382]
[1761876088068,0.22151188,109770.0,109760.0,0.21175394]
[1761876088069,0.26385013,109770.0,109760.0,0.21175394]
[1761876088272,0.26085013,109770.0,109760.0,0.21175394]
[1761876088493,0.26932536,109770.0,109760.0,0.0315382]
[1761876089681,0.04478797,109770.0,109760.0,0.20875394]
[1761876089885,0.04478797,109770.0,109760.0,0.23289394]
[1761876090649,0.04478797,109770.0,109760.0,0.62811423]
[1761876090650,0.03631274,109770.0,109760.0,0.62811423]
[1761876090852,0.01941623,109780.0,109770.0,0.18219914]
[1761876091097,0.04485888,109780.0,109770.0,0.23498914]
[1761876091438,0.28465713,109780.0,109770.0,0.23498914]
[1761876091638,0.28465713,109780.0,109760.0,0.19533574]
[1761876091855,0.28465713,109780.0,109770.0,0.21084914]
[1761876091992,0.22704142,109780.0,109770.0,0.21084914]
[1761876092190,0.04485888,109780.0,109770.0,0.23498914]
[1761876092399,0.04485888,109780.0,109770.0,0.63020943]
[1761876092596,0.01941623,109790.0,109780.0,0.18218254]
[1761876092826,0.04488014,109790.0,109780.0,0.23497254]
[1761876093367,0.04488014,109790.0,109780.0,0.63019283]
[1761876094316,0.02546391,109790.0,109780.0,0.23597254]
[1761876094568,0.26524388,109790.0,109780.0,0.21183254]
[1761876094776,0.28466011,109790.0,109780.0,0.21183254]
[1761876095103,0.28466011,109790.0,109780.0,0.02965]
[1761876095376,0.28466011,109790.0,109780.0,0.03065]
[1761876095813,0.28466011,109790.0,109780.0,0.21583254]
[1761876096142,0.04488014,109790.0,109780.0,0.23997254]
[1761876096372,0.00848797,109790.0,109780.0,0.23997254]
[1761876096772,0.21916423,109800.0,109780.0,0.23997254]
[1761876096975,0.23612955,109800.0,109790.0,0.19869595]
[1761876097403,0.23612955,109800.0,109790.0,0.01653]
[1761876097552,0.31958693,109800.0,109790.0,0.02865]
[1761876098167,0.31958693,109800.0,109790.0,0.02878224]
[1761876098659,0.31958693,109800.0,109790.0,0.02978224]
[1761876098915,0.31958693,109800.0,109790.0,0.00213224]
[1761876099314,0.71480722,109800.0,109790.0,0.00213224]
[1761876099516,0.31958693,109800.0,109790.0,0.00213224]
[1761876099948,0.31956107,109800.0,109790.0,0.00213224]
[1761876100384,0.31956107,109800.0,109790.0,0.00113224]
[1761876100823,0.31956107,109800.0,109790.0,0.00013224]
[1761876102906,0.18216595,109790.0,109780.0,0.18943475]
[1761876103185,0.23233865,109790.0,109780.0,0.02378224]
[1761876103377,0.25175488,109790.0,109780.0,0.02378224]
[1761876104194,0.25175488,109790.0,109780.0,0.01978224]
[1761876104526,0.25175488,109790.0,109780.0,0.02078224]
[1761876105811,0.25175488,109790.0,109780.0,0.20296478]
[1761876106010,0.23233865,109790.0,109780.0,0.20296478]
[1761876106550,0.5984442,109810.0,109790.0,0.18216595]
[1761876106551,0.20322391,109810.0,109790.0,0.18216595]
[1761876106749,0.65860084,109810.0,109800.0,0.01138]
[1761876106950,0.48364486,109810.0,109800.0,0.02767]
[1761876107149,0.21029673,109810.0,109800.0,0.23284936]
[1761876107355,0.20182573,109810.0,109800.0,0.23284936]
[1761876107586,0.00214491,109810.0,109800.0,0.62806965]
[1761876107772,0.00314491,109810.0,109800.0,0.62806965]
[1761876108177,0.00114491,109810.0,109800.0,1.02328994]
[1761876108413,0.00314491,109810.0,109800.0,1.02328994]
[1761876108797,0.00114491,109810.0,109800.0,1.02328994]
[1761876108990,0.00114491,109810.0,109800.0,1.11310895]
[1761876109294,0.00014491,109810.0,109800.0,1.11610895]
[1761876109496,0.00014491,109810.0,109800.0,1.11810895]
[1761876110700,9.937e-05,109810.0,109800.0,0.72288866]
[1761876114652,9.937e-05,109810.0,109800.0,0.23784936]
[1761876115707,0.18223214,109810.0,109800.0,0.0557]
[1761876115922,0.18223214,109810.0,109800.0,0.03267]
[1761876118211,0.57745243,109810.0,109800.0,0.005]
[1761876118568,0.5417389,109810.0,109800.0,0.005]
[1761876118767,0.63155791,109810.0,109800.0,0.005]
[1761876118967,0.72137692,109810.0,109800.0,0.005]
[1761876119173,1.14561467,109810.0,109800.0,0.005]
[1761876119375,3.19026534,109810.0,109800.0,0.003]
[1761876119512,3.23663802,109810.0,109800.0,0.003]
[1761876119713,3.23663802,109810.0,109800.0,0.004]
[1761876119922,0.18218254,109780.0,109770.0,0.01212]
[1761876120181,0.18219914,109770.0,109760.0,0.03441]
[1761876120497,0.18219914,109770.0,109760.0,0.0507]
[1761876121061,0.18219914,109770.0,109760.0,0.02767]
[1761876121490,0.18219914,109770.0,109760.0,0.02771553]
[1761876121695,0.19419044,109770.0,109760.0,0.03171553]
[1761876121900,0.22360877,109770.0,109760.0,0.03471553]
[1761876122121,0.22360877,109770.0,109760.0,0.03071553]
[1761876122331,0.20040079,109780.0,109760.0,0.23796127]
[1761876122560,0.54040079,109780.0,109770.0,0.23289914]
[1761876122768,0.54168575,109780.0,109770.0,0.23289914]
[1761876122965,0.20168575,109780.0,109770.0,0.23289914]
[1761876123171,0.18218254,109780.0,109770.0,0.23289914]
[1761876123575,0.20167033,109790.0,109780.0,0.18218254]
[1761876123779,0.22264987,109790.0,109780.0,0.02767]
[1761876124399,0.22264987,109790.0,109780.0,0.01138]
[1761876124605,0.22264987,109790.0,109780.0,0.19847254]
[1761876124816,0.20316883,109800.0,109780.0,0.22150254]
[1761876124975,0.18216595,109790.0,109780.0,0.22150254]
[1761876125176,0.18218254,109780.0,109770.0,0.19357914]
[1761876125403,0.18218254,109780.0,109770.0,0.20986914]
[1761876125613,0.20167351,109790.0,109770.0,0.20986914]
[1761876125832,0.23163209,109790.0,109770.0,0.20986914]
[1761876126201,0.23163209,109790.0,109770.0,0.23289914]
[1761876127378,0.29298784,109800.0,109780.0,0.19847254]
[1761876127607,0.31249419,109800.0,109780.0,0.19847254]
[1761876127996,0.18216595,109790.0,109780.0,0.19847254]
[1761876128737,0.18216595,109790.0,109780.0,0.01629]
[1761876128868,0.18216595,109790.0,109770.0,0.21660914]
[1761876129065,0.23173196,109790.0,109770.0,0.21660914]
[1761876129268,0.23173196,109790.0,109780.0,0.002]
[1761876129507,0.32155097,109790.0,109780.0,0.002]
[1761876129702,0.68105101,109790.0,109780.0,0.002]
[1761876129904,3.40708946,109790.0,109780.0,0.002]
[1761876130189,3.4909297,109790.0,109780.0,0.002]
[1761876130783,0.52219914,109770.0,109760.0,4.553e-05]
[1761876130997,0.70195776,109770.0,109760.0,4.553e-05]
[1761876131942,0.63151819,109770.0,109760.0,4.553e-05]
[1761876133813,0.61201815,109770.0,109760.0,4.553e-05]
[1761876134408,0.64820043,109770.0,109760.0,4.553e-05]
[1761876134611,2.6676632,109770.0,109760.0,4.553e-05]
[1761876135179,3.35751937,109770.0,109760.0,4.553e-05]
[1761876135356,3.23567274,109770.0,109760.0,4.553e-05]
[1761876136573,3.23967274,109770.0,109760.0,4.553e-05]
[1761876137140,3.21065528,109770.0,109760.0,4.553e-05]
[1761876137334,3.24004452,109770.0,109760.0,4.553e-05]
[1761876139207,3.24001988,109770.0,109760.0,4.553e-05]
[1761876139459,3.24001988,109770.0,109760.0,1.00004553]
[1761876140670,2.7010278,109770.0,109760.0,1.00004553]
[1761876141601,2.6990278,109770.0,109760.0,1.00004553]
[1761876141779,2.6950278,109770.0,109760.0,1.00004553]
[1761876142413,2.3550278,109770.0,109760.0,1.00004553]
[1761876142627,2.30820043,109770.0,109760.0,1.00004553]
[1761876142816,2.64820043,109770.0,109760.0,1.00004553]
[1761876143036,0.73801944,109770.0,109760.0,1.00004553]
[1761876143871,0.75748062,109770.0,109760.0,1.00004553]
[1761876144098,0.73801944,109770.0,109760.0,1.00004553]
[1761876144304,0.75748062,109770.0,109760.0,1.00004553]
[1761876145510,1.20665369,109770.0,109760.0,1.00004553]
[1761876146526,1.2340418,109770.0,109760.0,1.00004553]
[1761876146731,3.25095875,109770.0,109760.0,1.00004553]
[1761876147802,3.25495875,109770.0,109760.0,1.00004553]
[1761876148011,0.80678568,109770.0,109760.0,1.00004553]
[1761876149009,1.25195875,109770.0,109760.0,1.00004553]
[1761876149242,1.26242557,109770.0,109760.0,1.00004553]
[1761876149445,0.8132525,109770.0,109760.0,1.00004553]
[1761876149564,1.26242557,109770.0,109760.0,1.00004553]
[1761876150314,0.8132525,109770.0,109760.0,1.00004553]
[1761876152400,0.72343349,109770.0,109760.0,1.00004553]
[1761876152598,0.29447933,109770.0,109760.0,1.23414127]
[1761876153114,0.11228019,109770.0,109760.0,1.21097127]
[1761876153303,0.27501815,109770.0,109760.0,1.21097127]
[1761876153539,0.02246118,109770.0,109760.0,1.21097127]
[1761876153741,0.02246118,109770.0,109760.0,1.23414127]
[1761876153742,0.003,109770.0,109760.0,1.23414127]
[1761876153941,0.002,109770.0,109760.0,1.23414127]
[1761876154154,0.18219914,109770.0,109760.0,1.23514127]
[1761876154286,0.18219914,109770.0,109760.0,1.21197127]
[1761876154492,0.18219914,109770.0,109760.0,1.21297127]
[1761876154697,0.5945835,109770.0,109760.0,1.00204553]
[1761876154905,0.61404468,109770.0,109760.0,1.00204553]
[1761876157532,3.24123933,109770.0,109760.0,0.97667138]
[1761876157642,3.29806872,109770.0,109760.0,0.96200825]
[1761876157848,3.2895951,109770.0,109760.0,0.96200825]
[1761876158417,3.2895951,109770.0,109760.0,0.96000825]
[1761876158914,3.3015951,109770.0,109760.0,0.96000825]
[1761876159077,3.2671582,109770.0,109760.0,0.96000825]
[1761876159276,3.27016873,109770.0,109760.0,0.96000825]
[1761876159945,3.26316873,109770.0,109760.0,0.96000825]
[1761876160368,3.26916873,109770.0,109760.0,0.96000825]
[1761876161522,3.30860562,109770.0,109760.0,0.67948216]
[1761876162353,3.27916872,109770.0,109760.0,0.67948216]
[1761876163788,3.2425698,109770.0,109760.0,0.67948216]
[1761876164327,3.24256095,109770.0,109760.0,0.67948216]
[1761876167681,2.7572056,109770.0,109760.0,0.67948216]
[1761876167897,0.42567932,109770.0,109760.0,0.67948216]
[1761876168106,0.4618616,109770.0,109760.0,0.67948216]
[1761876168308,0.42567932,109770.0,109760.0,0.67948216]
[1761876168523,0.73828683,109770.0,109760.0,0.67948216]
[1761876168728,0.77146911,109770.0,109760.0,0.67948216]
[1761876168932,0.77246911,109770.0,109760.0,0.67948216]
[1761876169061,0.76646911,109770.0,109760.0,0.67948216]
[1761876169253,0.76846911,109770.0,109760.0,0.67948216]
[1761876171735,3.21764218,109770.0,109760.0,0.67948216]
[1761876172142,3.24503094,109770.0,109760.0,0.67948216]
[1761876179271,3.19114627,109770.0,109760.0,0.67948216]
[1761876179711,3.18267255,109770.0,109760.0,0.67948216]
[1761876180027,3.19115062,109770.0,109760.0,0.67948216]
[1761876180580,3.64247485,109770.0,109760.0,0.67948216]
[1761876180992,3.63399678,109770.0,109760.0,0.67948216]
[1761876181597,3.65399676,109770.0,109760.0,0.15521178]
[1761876181829,0.55839802,109760.0,109750.0,0.00022211]
[1761876182005,3.59162237,109760.0,109750.0,0.00022211]
[1761876183378,3.25038727,109760.0,109750.0,0.00022211]
[1761876184057,3.27778211,109760.0,109750.0,0.00022211]
[1761876184277,2.83044041,109760.0,109750.0,0.00022211]
[1761876184476,3.28278211,109760.0,109750.0,0.00022211]
[1761876185168,3.0870695,109760.0,109750.0,0.00022211]
[1761876185373,3.26928524,109760.0,109750.0,0.00022211]